[Event "1st Serbian League 2022"]
[Site "Vrnjacka Banja"]
[Date "2022.09.29"]
[Round "10.5"]
[White "Brenjo, Slavisa"]
[Black "Milosevic, Milos"]
[Result "1/2-1/2"]
[ECO "B94"]
[WhiteElo "2409"]
[BlackElo "2379"]
[Annotator "TA"]
[PlyCount "44"]
[EventDate "2022.09.20"]
[EventType "team-tourn"]
[EventCountry "SRB"]
[SourceTitle "playchess.com"]
[Source "ChessBase"]
[SourceQuality "1"]
[TimeControl "40/5400+30:1800+30"]

{[%evp 13,44,-2,28,2,24,21,26,12,34,27,27,23,18,17,29,32,19,11,22,24,13,15,31,27,23,16,18,6,8,5,6,0,18]} 1. e4 {[%emt 0:00:14]} c5 {[%emt 0:02:11]} 2. Nf3 {[%emt 0:00:15]} d6 {[%emt 0:00:03]} 3. d4 {[%emt 0:00:09]} cxd4 {[%emt 0:00:02]} 4. Nxd4 {[%emt 0:00:12]} Nf6 {[%emt 0:00:04]} 5. Nc3 {[%emt 0:00:09]} a6 {[%emt 0:00:02]} 6. Bg5 {[%emt 0:00:25]} Nbd7 {[%emt 0:00:18]} 7. f4 {[%emt 0:01:49] 7.Qe2 is a critical line.} Qc7 {[%emt 0:00:03]} 8. Qf3 {[%emt 0:10:31] B94: Sicilian Najdorf: 6 Bg5 Nbd7.} h6 {[%emt 0:00:04]} 9. Bxf6 {[%emt 0:00:34]} Nxf6 {[%emt 0:00:03]} 10. f5 {[%emt 0:01:57] White has an edge.} Qc5 {[%emt 0:00:04]} 11. O-O-O {[%emt 0:00:32]} g5 {[%emt 0:00:02]} 12. fxg6 {[%emt 0:00:39] [#] Nd5 is the strong threat.} Bg4 {[%emt 0:00:03]} 13. gxf7+ {[%emt 0:00:30]} Kxf7 {[%emt 0:00:03]} 14. Qd3 {[%emt 0:00:18] Black must now prevent Be2.} Bxd1 {[%emt 0:00:04]} 15. Nxd1 {[%emt 0:01:44] Pair of Knights!} Bg7 {[%emt 0:00:04]} 16. g3 {[%emt 0:03:27] And now Bh3 would win.} Nxe4 {[%emt 0:00:15]} 17. Qxe4 {[%emt 0:00:15]} Bxd4 {[%emt 0:00:40]} 18. c3 {[%emt 0:04:19] The board is on fire.} Bf6 {[%emt 0:00:17]} 19. Bc4+ {[%emt 0:01:53]} Ke8 {[%emt 0:00:25] [#] The position is equal.} 20. Qxb7 $146 {[%emt 0:06:59]} ({Predecessor:} 20. Rf1 Rf8 21. Kc2 Rc8 22. Ne3 Qc6 23. Bd5 Qb5 24. Rf2 Rc5 25. a4 Qd7 26. Kb1 h5 27. Rf3 a5 28. Nf5 Rxd5 29. Qxd5 Be5 30. Ne3 Rxf3 31. Qxf3 Qxa4 {½-½ (31) Delgado Ramos,H (2370)-Perez Rodriguez,R (2386) ICCF email 2018}) 20... Qxc4 {[%emt 0:01:04]} 21. Qxa8+ {[%emt 0:02:35]} Kf7 {[%emt 0:00:07]} 22. Qf3 {[%emt 0:00:19] Black should prevent a3.} Qxa2 {[%emt 0:00:17] An even fight not without its subleties.  Weighted Error Value: White=0.04 (flawless) /Black=0.04 (flawless)} 1/2-1/2

[Event "1st Serbian League 2022"]
[Site "Vrnjacka Banja"]
[Date "2022.09.29"]
[Round "10.6"]
[White "Markovic, Miroslav"]
[Black "Omorjan, Dejan"]
[Result "1/2-1/2"]
[ECO "A05"]
[WhiteElo "2275"]
[BlackElo "2265"]
[Annotator "TA"]
[PlyCount "30"]
[EventDate "2022.09.20"]
[EventType "team-tourn"]
[EventCountry "SRB"]
[SourceTitle "playchess.com"]
[Source "ChessBase"]
[SourceQuality "1"]
[TimeControl "40/5400+30:1800+30"]

{[%evp 14,30,-9,-13,-6,-10,-6,-13,-8,-27,-14,-19,-9,-20,-7,-24,-11,-7,-10]} 1. e4 {[%emt 0:00:07]} c5 {[%emt 0:00:34]} 2. c3 {[%emt 0:00:50]} Nf6 {[%emt 0:00:13]} 3. d3 {[%emt 0:01:44]} Nc6 {[%emt 0:00:37]} 4. Nf3 {[%emt 0:00:29]} d6 {[%emt 0:02:08]} 5. g3 {[%emt 0:00:19]} g6 {[%emt 0:00:51]} 6. Bg2 {[%emt 0:00:27]} Bg7 {[%emt 0:00:12]} 7. O-O {[%emt 0:00:08]} O-O {[%emt 0:00:33]} 8. a3 {[%emt 0:02:08]} Rb8 {[%emt 0:12:16] A05: Réti Opening: 1 Nf3 Nf6.} 9. Re1 {[%emt 0:01:54]} e5 {[%emt 0:01:34]} 10. Nbd2 {[%emt 0:05:22][%cal Bb1d2,Bd2f1,Bf1e3][%mdl 32]} b5 {[%emt 0:01:22]} 11. a4 {[%emt 0:13:21] [#]} a6 $146 {[%emt 0:03:29]} ({Predecessor:} 11... b4 12. Nc4 Be6 13. Bg5 Qc7 14. Ne3 bxc3 15. bxc3 Na5 16. Nd2 h6 17. Bxf6 Bxf6 {½-½ (32) Rubio Doblas,R (2209)-Santamaria Perez,T (2320) ICCF email 2011}) 12. axb5 {[%emt 0:00:08]} axb5 {[%emt 0:00:32]} 13. Nf1 {[%emt 0:00:22]} h6 {[%emt 0:02:13]} 14. Ne3 {[%emt 0:05:07]} Be6 {[%emt 0:16:45]} 15. d4 {[%emt 0:14:47]} cxd4 {[%emt 0:02:46] A rather calm draw.  Weighted Error Value: White=0.03 (flawless) /Black=0.05 (flawless)} (15... Nxe4 $2 16. d5 $18) 1/2-1/2

[Event "1st Serbian League 2022"]
[Site "Vrnjacka Banja"]
[Date "2022.09.29"]
[Round "10.7"]
[White "Sarana, Alexey"]
[Black "Tadic, Stefan"]
[Result "0-1"]
[ECO "D17"]
[WhiteElo "2662"]
[BlackElo "2318"]
[Annotator "TA"]
[PlyCount "72"]
[EventDate "2022.09.20"]
[EventType "team-tourn"]
[EventCountry "SRB"]
[SourceTitle "playchess.com"]
[Source "ChessBase"]
[SourceQuality "1"]
[TimeControl "40/5400+30:1800+30"]

{[%evp 20,72,6,13,18,22,19,11,18,11,16,0,35,26,40,39,38,41,39,33,33,35,52,9,20,0,27,39,26,0,0,0,0,0,0,0,0,-3,-12,-12841,-12841,-12841,-12842,-12842,-12843,-29988,-29989,-29989,-29990,-29990,-12844,-29991,-29992,-29993,-29994]} 1. d4 {[%emt 0:00:23]} d5 {[%emt 0:00:23]} 2. Nf3 {[%emt 0:00:07]} Nf6 {[%emt 0:00:32]} 3. c4 {[%emt 0:00:03]} c6 {[%emt 0:00:32]} 4. Nc3 {[%emt 0:00:05]} dxc4 {[%emt 0:00:44]} 5. a4 {[%emt 0:00:08]} Bf5 {[%emt 0:00:29]} 6. Ne5 {[%emt 0:00:07]} e6 {[%emt 0:00:26]} 7. f3 {[%emt 0:00:22]} Bb4 {[%emt 0:00:40]} 8. e4 {[%emt 0:00:54]} Bxe4 {[%emt 0:00:28]} 9. fxe4 {[%emt 0:00:04]} Nxe4 {[%emt 0:00:08]} 10. Bd2 {[%emt 0:00:08]} Qxd4 {[%emt 0:00:22]} 11. Nxe4 {[%emt 0:00:04]} Qxe4+ {[%emt 0:00:09] D17: Slav Defence: 5 a4 Bf5: Lines with 6 Nh4 and 6 Ne5.} 12. Qe2 {[%emt 0:00:02]} Bxd2+ {[%emt 0:00:09]} 13. Kxd2 {[%emt 0:00:02]} Qd5+ {[%emt 0:00:09] The position is equal.} 14. Kc1 {[%emt 0:00:04] Recently 14.Kc3 got a lot of attention.} O-O {[%emt 0:09:53]} 15. Qe3 {[%emt 0:00:58]} b5 {[%emt 0:27:20]} (15... Rd8 16. Bxc4 Qd4 17. Qe2 $16) (15... Na6 $5 {[%cal Ra6b4]}) 16. Be2 {[%emt 0:00:25]} Nd7 {[%emt 0:00:04]} 17. Nxd7 {[%emt 0:00:14]} Qxd7 {[%emt 0:00:05]} 18. axb5 {[%emt 0:00:07]} cxb5 {[%emt 0:00:05]} 19. Bf3 {[%emt 0:00:05]} Rac8 {[%emt 0:02:22]} 20. Rxa7 {[%emt 0:00:10]} Qd6 {[%emt 0:00:46][%cal Oc4c3]} 21. Kc2 {[%emt 0:00:12]} b4 $1 {[%emt 0:04:51] [#]} 22. h4 $146 {[%emt 0:15:24]} ({Predecessor:} 22. h3 c3 23. b3 Rfd8 24. Rd1 Qg3 25. Rdd7 Rxd7 26. Rxd7 h5 27. Qd4 e5 28. Rd8+ Rxd8 29. Qxd8+ {½-½ (37) Baramidze,D (2591)-Vallejo Pons,F (2716) Germany 2012}) 22... h6 {[%emt 0:09:22]} 23. Rd1 {[%emt 0:03:34]} Qg3 {[%emt 0:00:17]} 24. h5 {[%emt 0:18:37]} (24. Ra4 $5 {[%cal Ra4b4]}) 24... Rfd8 {[%emt 0:10:45]} 25. Rd4 {[%emt 0:26:48]} Rxd4 {[%emt 0:04:20]} 26. Qxd4 {[%emt 0:00:02]} Qe1 {[%emt 0:00:22][%csl Gc4][%cal Rb4b3] [#]} 27. Bd1 {[%emt 0:01:05]} (27. b3 $2 cxb3+ 28. Kxb3 Qb1+ 29. Ka4 Qc2+ 30. Ka5 b3 $19) 27... Qf1 {[%emt 0:08:36] Really sharp!} 28. Kc1 {[%emt 0:09:20]} Qxg2 $40 {[%emt 0:02:55][%mdl 128] Hoping for ...c3. White needs to defend precisely.} 29. Qf4 $2 {[%emt 0:01:13][%mdl 8192] Now White is beyond hope.} ({Don't play} 29. Qd7 Qg5+ 30. Kb1 Rf8 $17) (29. Qd2 $11 Qe4 30. Qf2) 29... c3 $19 {[%emt 0:02:11]} 30. bxc3 {[%emt 0:05:06]} bxc3 {[%emt 0:00:29][%csl Gc3][%cal Rg2b2,Bb4c3,Bc3c2][%mdl 32] [#]} 31. Qxf7+ {[%emt 0:00:17]} Kh8 {[%emt 0:00:01][%csl Gc3][%cal Rg2b2]} 32. Be2 {[%emt 0:00:07]} Qg5+ {[%emt 0:02:31]} ({Weaker is} 32... c2 33. Rc7 Qh1+ 34. Kxc2 Qe4+ 35. Bd3 Qg2+ 36. Kc3 $11) 33. Kc2 {[%emt 0:00:01]} Qd2+ {[%emt 0:00:06]} 34. Kb3 {[%emt 0:00:01]} Qb2+ {[%emt 0:06:03]} 35. Ka4 {[%emt 0:00:02]} c2 {[%emt 0:00:04]} 36. Re7 {[%emt 0:00:56]} Ra8+ {[%emt 0:00:06] Weighted Error Value: White=0.45/Black=0.05 (flawless)} 0-1

[Event "1st Serbian League 2022"]
[Site "Vrnjacka Banja"]
[Date "2022.09.29"]
[Round "10.8"]
[White "Ivanovic, Marko"]
[Black "Ivic, Velimir"]
[Result "0-1"]
[ECO "C56"]
[WhiteElo "2265"]
[BlackElo "2553"]
[Annotator "TA"]
[PlyCount "38"]
[EventDate "2022.09.20"]
[EventType "team-tourn"]
[EventCountry "SRB"]
[SourceTitle "playchess.com"]
[Source "ChessBase"]
[SourceQuality "1"]
[TimeControl "40/5400+30:1800+30"]

{[%evp 11,38,7,7,5,9,6,13,11,13,0,0,-2,12,-44,-58,-212,-201,-763,-777,-29990,-29991,-29991,-29992,-29995,-29996,-29997,-29998,-29998,-29999]} 1. e4 {[%emt 0:00:57][%cal Be2e4,Be4e5][%mdl 32]} e5 {[%emt 0:00:07]} 2. Nf3 {[%emt 0:00:04]} Nc6 {[%emt 0:00:06]} 3. d4 {[%emt 0:00:03]} exd4 {[%emt 0:00:07]} 4. Bc4 {[%emt 0:00:04]} Nf6 {[%emt 0:01:16]} 5. e5 {[%emt 0:00:05]} Ne4 {[%emt 0:01:21]} 6. Qe2 {[%emt 0:00:04]} Nc5 $1 {[%emt 0:01:05][%cal Be4c5,Bc5e6,Be6f4,Bf4g2][%mdl 32]} (6... Bb4+ $2 7. Kd1 $16) 7. O-O {[%emt 0:00:06] C56: Two Knights: 4 d4 exd4 5 0-0 Nxe4.} Ne6 {[%emt 0:04:56] is now debated instead of 7...Be7.} 8. c3 {[%emt 0:00:41]} d5 {[%emt 0:01:44]} 9. exd6 $1 {[%emt 0:00:57] The position is equal.} Bxd6 {[%emt 0:00:06]} 10. cxd4 {[%emt 0:00:06] d5 is the strong threat.} O-O {[%emt 0:00:11]} 11. Be3 {[%emt 1:32:53] Hoping for d5.} Nf4 {[%emt 0:05:03]} 12. Qd2 {[%emt 0:00:00]} (12. Bxf4 $11 Bxf4 13. Qe4) 12... Qf6 $15 {[%emt 0:01:34][%cal Of4g2] aiming for ...Nxg2!} 13. Nc3 $2 {[%emt 0:00:00] [#]} (13. Ne1 $15) 13... Nxg2 $1 $19 {[%emt 0:04:03]} 14. Kxg2 {[%emt 0:00:00] [#]} (14. Ne1 Qh4 15. f4 Nxe3 16. Qxe3) 14... Bh3+ $1 {[%emt 0:00:28][%mdl 576] Skewer, Deflection, Decoy} 15. Kxh3 {[%emt 0:00:00]} (15. Kg1 Qxf3) 15... Qxf3+ {[%emt 0:00:07] Black mates.} 16. Kh4 {[%emt 0:00:00] [#]} Nxd4 $146 {[%emt 0:01:35][%mdl 512]} ({Predecessor:} 16... Ne7 17. Bd3 Ng6+ 18. Bxg6 fxg6 19. Qe2 Be7+ 20. Bg5 Rf4# {0-1 (20) Snarheim,D (2216)-Ostmoe,G (2285) Asker 2003}) 17. Qxd4 {[%emt 0:00:00]} (17. Bd3 g6) 17... Be7+ {[%emt 0:00:05]} 18. Bg5 {[%emt 0:00:00]} Bxg5+ {[%emt 0:00:05]} 19. Kxg5 {[%emt 0:00:00]} h6+ {[%emt 0:00:04] White did not feel at home in the position after the opening.  Weighted Error Value: White=0.98/Black=0.01 (flawless)} 0-1

[Event "1st Serbian League 2022"]
[Site "Vrnjacka Banja"]
[Date "2022.09.29"]
[Round "10.10"]
[White "Arsovic, Zoran"]
[Black "Djukic, Nikola"]
[Result "1/2-1/2"]
[ECO "A34"]
[WhiteElo "2362"]
[BlackElo "2536"]
[Annotator "TA"]
[PlyCount "81"]
[EventDate "2022.09.20"]
[EventType "team-tourn"]
[EventCountry "SRB"]
[SourceTitle "playchess.com"]
[Source "ChessBase"]
[SourceQuality "1"]
[TimeControl "40/5400+30:1800+30"]

{[%evp 17,81,20,13,14,29,23,18,29,18,21,21,21,26,0,0,0,0,-6,-4,-23,0,-11,-14,-16,0,-89,-106,-120,-135,-127,-118,-132,-114,-110,-110,-102,-116,-125,-119,-112,-106,-119,-100,-100,0,0,0,0,0,0,64,64,64,64,64,64,64,64,64,64,64,64,64,64,78,79]} 1. Nf3 {[%emt 0:00:04]} Nf6 {[%emt 0:01:18]} 2. c4 {[%emt 0:00:17]} g6 {[%emt 0:00:06]} 3. g3 {[%emt 0:01:31]} Bg7 {[%emt 0:01:28]} 4. Bg2 {[%emt 0:00:16]} O-O {[%emt 0:00:21]} 5. O-O {[%emt 0:00:50]} d5 {[%emt 0:00:54]} 6. cxd5 {[%emt 0:00:23]} Nxd5 {[%emt 0:00:06]} 7. Nc3 {[%emt 0:00:30]} c5 {[%emt 0:02:02]} 8. Nxd5 {[%emt 0:07:09]} Qxd5 {[%emt 0:00:08]} 9. d4 {[%emt 0:00:15]} cxd4 {[%emt 1:28:37]} 10. Be3 $1 {[%emt 0:00:45][%mdl 64] Pin. A34: Symmetrical English: 2 Nc3, lines with ...d5.} Qh5 {[%emt 0:00:00]} 11. Nxd4 {[%emt 0:00:48]} Nd7 {[%emt 0:00:00] [#]} 12. Rc1 $146 {[%emt 0:21:12] The position is equal.} ({Predecessor:} 12. Bf3 Qa5 13. Qe1 Qa6 14. Qb4 Ne5 15. Bg2 Nc4 16. Qxe7 Nxb2 17. Rab1 Nc4 18. Bxb7 Bxb7 19. Qxb7 {½-½ (48) Musalov,R (2332)-Khegay,D (2478) Moscow 2017}) 12... Nf6 {[%emt 0:00:00]} 13. Nf3 {[%emt 0:08:20]} (13. h4 {is more complex.} Rd8 14. Qb3 Ng4 15. Rfd1) 13... Qb5 {[%emt 0:00:00]} 14. b3 {[%emt 0:11:42]} Qa6 {[%emt 0:00:00]} 15. Qd3 {[%emt 0:21:55]} Qxd3 {[%emt 0:00:00]} 16. exd3 {[%emt 0:00:28]} Rd8 {[%emt 0:00:00]} 17. Bc5 {[%emt 0:05:39]} Nd5 {[%emt 0:00:00]} 18. Rfe1 {[%emt 0:00:45]} Bf6 {[%emt 0:00:00]} 19. Ne5 {[%emt 0:04:10]} Be6 {[%emt 0:00:00]} 20. a4 {[%emt 0:00:44]} Rdc8 {[%emt 0:00:00]} 21. Nd7 {[%emt 0:05:21] [#]} Bc3 $1 $17 {[%emt 0:00:00]} ({Much weaker is} 21... Bxd7 22. Bxd5 Bc6 23. Bxe7 $11) 22. Rxe6 {[%emt 0:05:14]} fxe6 {[%emt 0:00:00]} 23. Bxd5 {[%emt 0:00:04]} exd5 {[%emt 0:00:00]} 24. Rxc3 {[%emt 0:02:03]} Rc7 {[%emt 0:00:00]} 25. Ne5 {[%emt 0:00:21] [#]} Rac8 $1 {[%emt 0:00:00]} 26. d4 {[%emt 0:00:28]} b6 {[%emt 0:00:00]} 27. b4 {[%emt 0:01:06][%cal Oc3b3]} bxc5 {[%emt 0:00:00]} 28. bxc5 {[%emt 0:00:38][%mdl 4096] Endgame KRR-KRN} Rb8 {[%emt 0:00:00] Inhibits Rb3.} 29. Nd3 {[%emt 0:00:21] Against Rb4} Rb1+ {[%emt 0:00:00]} 30. Kg2 {[%emt 0:00:04]} Ra1 {[%emt 0:00:00]} (30... e6 $17) 31. Nf4 $11 {[%emt 0:00:27]} e6 {[%emt 0:00:03]} 32. Nxe6 {[%emt 0:00:07]} Rc8 {[%emt 0:00:06]} 33. Nf4 {[%emt 0:00:48]} Rd8 {[%emt 0:06:36]} ({Better is} 33... Rxa4 $11 34. Nxd5 Kf7) 34. c6 $14 {[%emt 0:02:08][%cal Of4d5] Threatens to win with Nxd5!} Rxa4 {[%emt 0:00:15] [#]} 35. Nxd5 $1 {[%emt 0:01:07] Strongly threatening c7. White is more active.} Rxd4 {[%emt 0:03:31]} (35... Rxd5 $2 36. c7 Rf5 37. c8=Q+ $18) 36. c7 {[%emt 0:00:00]} R4xd5 {[%emt 0:00:16]} 37. c8=Q {[%emt 0:00:09]} Rxc8 {[%emt 0:00:09]} 38. Rxc8+ {[%emt 0:00:02]} Kg7 {[%emt 0:00:50]} 39. Rc7+ {[%emt 0:00:05]} Kg8 {[%emt 0:00:21]} 40. Rxa7 {[%emt 0:00:07]} h5 {[%emt 0:00:45]} 41. h3 {[%emt 0:30:36] Weighted Error Value: White=0.08 (flawless) /Black=0.09 (flawless)} 1/2-1/2

[Event "1st Serbian League 2022"]
[Site "Vrnjacka Banja"]
[Date "2022.09.29"]
[Round "10.11"]
[White "Strikovic, Aleksa"]
[Black "Radusinovic, Lazar"]
[Result "0-1"]
[ECO "A25"]
[WhiteElo "2491"]
[BlackElo "2308"]
[Annotator "TA"]
[PlyCount "86"]
[EventDate "2022.09.20"]
[EventType "team-tourn"]
[EventCountry "SRB"]
[SourceTitle "playchess.com"]
[Source "ChessBase"]
[SourceQuality "1"]
[TimeControl "40/5400+30:1800+30"]

{[%evp 10,86,32,34,31,23,29,35,27,14,18,-22,0,-29,-20,-27,-41,-81,-29,-29,-27,-44,-55,-47,-42,-134,-117,-314,-291,-327,-316,-287,-297,-305,-257,-339,-351,-321,-326,-348,-327,-370,-385,-404,-388,-358,-287,-401,-378,-398,-397,-404,-381,-428,-405,-398,-365,-379,-369,-463,-440,-577,-567,-664,-529,-657,-651,-683,-666,-790,-801,-758,-712,-1205,-1205,-1159,-1097,-1034,-943]} 1. c4 {[%emt 0:01:24]} e5 {[%emt 0:00:07]} 2. g3 {[%emt 0:00:25]} Nc6 {[%emt 0:00:38]} 3. Bg2 {[%emt 0:00:06]} d6 {[%emt 0:00:12]} 4. Nc3 {[%emt 0:00:42]} Be6 {[%emt 0:00:10]} 5. d3 {[%emt 0:01:46]} Qd7 {[%emt 0:00:32]} 6. Rb1 {[%emt 0:01:36]} Be7 {[%emt 0:00:36] A25: English Opening vs King's Indian with ...Nc6 but without early d3.} 7. b4 {[%emt 0:00:39][%cal Bb2b4,Bb4b5][%mdl 32]} Nf6 {[%emt 0:01:01]} 8. Nd5 {[%emt 0:02:39]} O-O {[%emt 0:01:25] White is slightly better.} 9. b5 {[%emt 0:05:47]} Nd8 {[%emt 0:02:07]} 10. Qa4 {[%emt 0:02:33] [#]} h6 $146 {[%emt 0:04:02]} ({Predecessor:} 10... Bxd5 11. cxd5 a5 12. Bh3 Qe8 13. Qc4 c6 14. e4 cxd5 15. exd5 Nd7 16. Bf5 Kh8 {1-0 (44) Asendorf,J-Semmler,G Germany 1991}) 11. Ba3 {[%emt 0:02:42]} a6 {[%emt 0:06:34]} 12. Nxe7+ {[%emt 0:19:00]} Qxe7 {[%emt 0:00:30]} 13. Nf3 {[%emt 0:11:49]} e4 {[%emt 0:04:10]} ({Better is} 13... Bd7 $17 14. e3 e4) 14. dxe4 $11 {[%emt 0:02:28]} Nxe4 {[%emt 0:00:41] ...Nc3 is the strong threat.} 15. Rb3 {[%emt 0:00:08] Against Nc3} Qf6 {[%emt 0:06:21] And now ...Qa1+ would win.} 16. Bb2 {[%emt 0:05:25] Against Qa1+} Nc5 {[%emt 0:07:16][%csl LRa4,LRb3]} 17. Qa3 {[%emt 0:00:06]} (17. Bxf6 $15 Nxa4 18. Bxd8 Raxd8 19. bxa6 bxa6 20. Nd2) 17... Qg6 $17 {[%emt 0:02:12] Black is more active.} 18. Rc3 $2 {[%emt 0:00:02] [#] Loses the game.} (18. O-O $17) 18... axb5 $1 $19 {[%emt 0:02:27]} 19. Qxa8 {[%emt 0:01:22]} Nc6 {[%emt 0:00:32] Pair of Knights!} 20. Qxf8+ {[%emt 0:03:48]} ({Wrong is} 20. Qa3 $2 b4 21. O-O bxa3 $19) 20... Kxf8 {[%emt 0:00:05]} 21. O-O {[%emt 0:02:28]} bxc4 {[%emt 0:10:02]} 22. Ra3 {[%emt 0:03:53] Prevents Na4.} Kg8 {[%emt 0:04:54]} 23. Rc1 {[%emt 0:01:13]} Qh5 {[%emt 0:02:38]} 24. h3 {[%emt 0:19:18]} Na6 {[%emt 0:08:24]} 25. g4 {[%emt 0:01:55]} Qb5 {[%emt 0:01:00]} 26. Bc3 {[%emt 0:01:50]} Qc5 {[%emt 0:01:29]} 27. Ra4 {[%emt 0:00:24]} d5 {[%emt 0:00:29]} 28. e3 {[%emt 0:00:18]} Qf8 {[%emt 0:03:38] Threatens to win with ...Nc5.} 29. Bb2 {[%emt 0:03:14]} Nab4 {[%emt 0:08:23]} 30. Ne1 {[%emt 0:00:53]} Qc8 {[%emt 0:02:48]} 31. Bc3 {[%emt 0:02:09]} Na6 {[%emt 0:00:49] Strongly threatening ...b5.} 32. Rb1 {[%emt 0:00:24]} Nc5 {[%emt 0:01:05]} 33. Ra3 {[%emt 0:00:08]} h5 {[%emt 0:01:09]} 34. f3 {[%emt 0:02:18]} f5 {[%emt 0:05:41] Black is clearly winning.} 35. Bd4 {[%emt 0:02:22]} Qf8 {[%emt 0:00:41][%cal Rf5g4]} 36. Rc3 {[%emt 0:00:39]} f4 {[%emt 0:00:47] Hoping for ...fxe3.} 37. Nc2 {[%emt 0:00:06]} fxe3 {[%emt 0:01:41]} 38. Bxe3 {[%emt 0:00:47]} Qf6 {[%emt 0:00:26]} 39. Ra3 {[%emt 0:00:02]} d4 {[%emt 0:00:51][%cal Bd5d4,Bd4d3][%mdl 32]} 40. Bf2 {[%emt 0:00:01]} Qg6 {[%emt 0:00:26]} 41. Rb5 {[%emt 0:30:29]} Qxc2 {[%emt 0:35:57]} 42. Ra8+ {[%emt 0:00:06]} Kf7 {[%emt 0:00:05][%cal Od4d3] aiming for ...d3!} 43. Rxc5 {[%emt 0:00:04]} d3 {[%emt 0:00:15] Weighted Error Value: White=0.58/Black=0.12 (very precise)} 0-1

[Event "1st Serbian League 2022"]
[Site "Vrnjacka Banja"]
[Date "2022.09.29"]
[Round "10.12"]
[White "Todorovic, Goran N"]
[Black "Perunovic, Miodrag"]
[Result "0-1"]
[ECO "E90"]
[WhiteElo "2305"]
[BlackElo "2413"]
[Annotator "TA"]
[PlyCount "80"]
[EventDate "2022.09.20"]
[EventType "team-tourn"]
[EventCountry "SRB"]
[SourceTitle "playchess.com"]
[Source "ChessBase"]
[SourceQuality "1"]
[TimeControl "40/5400+30:1800+30"]

{[%evp 19,80,10,13,-8,19,5,0,4,45,0,0,-34,-32,-14,71,66,79,0,0,0,0,0,58,41,51,49,43,30,30,19,33,31,60,23,76,76,69,33,30,-86,-88,-88,-86,-92,-93,-92,-91,-91,-91,-91,-91,-106,-106,-468,-447,-397,-389,-550,-529,-496,-479,-824,-738]} 1. Nf3 {[%emt 0:00:30]} Nf6 {[%emt 0:01:09]} 2. c4 {[%emt 0:00:00]} g6 {[%emt 0:00:07]} 3. Nc3 {[%emt 0:00:00]} Bg7 {[%emt 0:00:06]} 4. e4 {[%emt 0:00:06]} d6 {[%emt 0:00:02]} 5. d4 {[%emt 0:00:10]} O-O {[%emt 0:00:08]} 6. h3 {[%emt 0:00:03]} e5 {[%emt 0:00:07]} 7. d5 {[%emt 0:00:11]} Nh5 {[%emt 0:00:01]} 8. Nh2 {[%emt 0:02:08]} Qe8 {[%emt 0:00:03]} 9. Be2 {[%emt 0:01:30][%cal Bf1e2,Be2f3,Bf3g2][%mdl 32]} Nf4 {[%emt 0:00:01]} 10. Bf3 {[%emt 0:00:13]} f5 {[%emt 0:00:01]} 11. g3 {[%emt 0:01:53] E90: King's Indian: Classical: Early deviations and 6 h3.} Nxh3 {[%emt 0:00:02]} 12. Bg2 $1 {[%emt 0:01:34]} fxe4 {[%emt 0:00:02]} 13. Be3 {[%emt 0:02:52] The position is equal.} g5 {[%emt 0:24:42]} (13... Na6 $5 {[%cal Ra6c5]}) 14. Nxe4 {[%emt 0:09:13]} Qg6 {[%emt 0:01:10]} 15. Nc3 {[%emt 0:40:18] [#]} Bf5 $146 {[%emt 0:10:00][%cal Oh3f4] Threatens to win with ...Nf4!} ({Predecessor:} 15... h5 16. Nf3 Bg4 17. Rxh3 e4 18. Qc2 Bxh3 19. Bxh3 Bxc3+ 20. Qxc3 Rxf3 21. Be6+ Kh7 {0-1 (39) Koshevoy,S (2294)-Arslanov,S (2192) Moscow 2007}) 16. Nf3 {[%emt 0:16:01]} Bc2 {[%emt 0:15:48]} (16... e4 $11 17. Nd4 Bxd4 18. Qxd4 (18. Bxd4 g4 $15) 18... g4) 17. Qd2 $16 {[%emt 0:07:58]} Nf4 {[%emt 0:01:02]} ({Weaker is} 17... g4 18. Nh4 Qd3 19. Rc1 Qxd2+ 20. Kxd2 $16) 18. gxf4 {[%emt 0:01:31]} (18. Bf1 $16) 18... gxf4 $11 {[%emt 0:00:31]} 19. Nh4 {[%emt 0:03:05]} fxe3 {[%emt 0:00:12]} 20. Qxe3 {[%emt 0:00:07]} Qd3 {[%emt 0:05:22]} (20... Qh6 $1 $11) 21. Be4 $36 {[%emt 0:00:23][%mdl 2048] Black is under pressure.} Qxe3+ {[%emt 0:00:12]} 22. fxe3 {[%emt 0:00:03]} Bxe4 {[%emt 0:00:02]} 23. Nxe4 {[%emt 0:00:10]} Nd7 {[%emt 0:00:02]} 24. Ke2 {[%emt 0:02:12][%mdl 1024] White has compensation.} h6 {[%emt 0:05:44]} 25. Rag1 {[%emt 0:02:01]} Rf7 $1 {[%emt 0:03:34][%cal Ob7b5]} 26. Rg2 {[%emt 0:00:42]} a6 {[%emt 0:05:33]} (26... a5 $11) 27. Rhg1 $16 {[%emt 0:00:15][%cal Oh4f5] Nf5! is the strong threat.} Kh7 {[%emt 0:00:11] [#]} 28. Nf5 $1 {[%emt 0:00:29][%cal Rg2g7] Pair of Knights!} Bf8 {[%emt 0:00:18]} 29. Ng5+ {[%emt 0:07:15]} hxg5 $17 {[%emt 0:00:20]} 30. Rxg5 {[%emt 0:00:12] Intending Rh1+ and mate.} Bh6 {[%emt 0:05:13]} 31. Rh5 {[%emt 0:00:15][%csl Gf5][%cal Rh5h6] [#]} Rxf5 $1 {[%emt 0:00:19]} 32. Rxf5 {[%emt 0:00:07] Hoping for Rf7+.} Rf8 {[%emt 0:00:08] Inhibits Rf7+.} 33. Rxf8 {[%emt 0:00:27]} Bxf8 {[%emt 0:00:54]} 34. Kf3 {[%emt 0:00:22]} Nf6 {[%emt 0:01:21]} 35. Rg2 {[%emt 0:01:46]} Bh6 {[%emt 0:00:39]} 36. b4 $2 {[%emt 0:00:24][%mdl 8192] [#] This move loses the game for White.} (36. e4 $17) 36... e4+ $1 $19 {[%emt 0:02:18]} 37. Ke2 {[%emt 0:00:07]} b5 {[%emt 0:00:25]} 38. cxb5 {[%emt 0:02:09]} (38. Rg1 $142) 38... axb5 {[%emt 0:00:02] Black is clearly winning.} 39. Rg1 {[%emt 0:00:13]} Nxd5 {[%emt 0:00:08]} 40. Rc1 {[%emt 0:00:19]} (40. Rg4 $142) 40... Bxe3 {[%emt 0:00:57] Weighted Error Value: White=0.53/Black=0.14 (very precise)} 0-1